Cogmind - Beta 16 @@@ ROGUE MODE // 2025.12.23 @ 11:19:23 Player: sve9 Result: Destroyed by CL-FOQ(j) with Overtuned Pulse Rifle Performance ------------- Evolutions (0) 0 Regions Visited (3) 600 Robots Destroyed (27) 135 Value Destroyed (842) 842 Prototype IDs (19) 380 Alien Tech Used (0) 0 Bonus (800) 800 TOTAL SCORE: 2757 Bonus ------- Registered with UFD 300 Met Optimus in HQ 500 Cogmind --------- Core Integrity 0/250 Matter 295/300 Energy 170/170 System Corruption 0% Temperature Cool (44) Movement Core (500) Ox9 Location -7/Scraptown Parts ------- > --- POWER (1) -------- Makeshift Power Source > --- PROPULSION (2) --- (None) > --- UTILITY (2) ------ Large Storage Unit Hardened Light Armor Plating > --- WEAPON (2) ------- (None) > --- INVENTORY (15) --- Experimental Sensor Array Advanced Signal Interpreter ECM Suite Rainbow Chip Heavy Rocket Launcher Peak State ------------ > --- POWER ------------ Makeshift Power Source > --- PROPULSION ------- Armored Huge Wheel > --- UTILITY ---------- Large Storage Unit Expert System > --- WEAPON ----------- Subdweller Machine Gun > --- INVENTORY -------- Scrap Suit Deep Structural Scanner Experimental Sensor Array Advanced Signal Interpreter Seismic Detector ECM Suite Hardened Light Armor Plating Mapping Drone Bay Rainbow Chip Lightning Gun Heavy Rocket Launcher Plasma Cutter Shrapnel Trap Botcube [Rating: 28] Favorites ----------- Power Subdweller Power Source Engine Subdweller Power Source Propulsion Spiked Treads Treads Spiked Treads Leg Aluminum Leg Wheel Subdweller Monowheel Utility Improved Targeting Computer Device Seismic Detector Storage Large Storage Unit Processor Improved Targeting Computer Protection Scrap Shield Weapon Subdweller Machine Gun Energy Gun EM Pulse Gun Ballistic Gun Subdweller Machine Gun Ballistic Cannon Battle Cannon Launcher Grenade Launcher Special Weapon Plasma Cutter Build | -11 -10 -10 -7 ------- Run | Yrd Mat Sub Scr Slots Evolved . | . . . . Power . | . . . . Propulsion . | . . . . Utility . | . . . . Weapon . | . . . . Parts Attached 37 | 7 1 20 9 Power 6 | 1 1 2 2 Engine 6 | 1 1 2 2 Core . | . . . . Reactor . | . . . . Propulsion 11 | 2 . 6 3 Treads 5 | 2 . 3 . Leg 2 | . . . 2 Wheel 4 | . . 3 1 Hover . | . . . . Flight . | . . . . Utility 8 | 2 . 3 3 Device 1 | 1 . . . Storage 2 | 1 . . 1 Processor 2 | . . 1 1 Hackware . | . . . . Protection 3 | . . 2 1 Artifact . | . . . . Weapon 12 | 2 . 9 1 Energy Gun 2 | . . 1 1 Energy Cannon . | . . . . Ballistic Gun 7 | 2 . 5 . Ballistic Cannon 1 | . . 1 . Launcher 1 | . . 1 . Special Weapon 1 | . . 1 . Impact Weapon . | . . . . Slashing Weapon . | . . . . Piercing Weapon . | . . . . Special Melee Weapon . | . . . . Unidentified Prototypes 1 | . . . 1 Corrupted Parts 2 | . . 2 . System Corruption 3 | . . 3 . Parts Lost 6 | . 1 3 2 Power 2 | . 1 1 . Propulsion 1 | . . . 1 Utility 1 | . . 1 . Weapon 2 | . . 1 1 Highest Loss Streak 3 | . 1 3 2 To Critical Strikes . | . . . . Average Backups 5 | 2 6 4 6 Power . | . . . . Propulsion . | 1 2 . . Utility 2 | . . 2 4 Weapon 1 | . 1 1 1 Tool/Special . | . . . . Unused Backups 13 | . 3 1 9 Power . | . . . . Propulsion 2 | . 2 . . Utility 10 | . 1 1 8 Weapon 1 | . . . 1 Tool/Special . | . . . . Average Slot Usage (%) 92 | . 99 92 90 Engine 13 | . 13 12 14 Treads 17 | . 28 26 . Wheel 7 | . . 1 18 Device 8 | . 14 7 7 Storage 3 | . 14 . 6 Processor 9 | . . 8 13 Protection 3 | . . 6 . Energy Gun 5 | . . 5 6 Ballistic Gun 18 | . 28 15 20 Ballistic Cannon 3 | . . 5 . Peak Build Rating 28 | 7 8 14 28 Average Rating 14 | 5 7 11 19 On Entrance 7 | . 7 8 14 Avg Prop Armor Cover (%) 8 | . . 15 7 Naked Turns . | . . . . Heaviest Build 32 | 13 15 30 32 Greatest Support 40 | 40 40 40 40 Greatest Overweight (x) 5 | . . 1 5 Average Overweight (x) . | . . . . Largest Inventory Capacity 15 | 8 8 8 15 Average Capacity 6 | 7 8 5 9 Most Carried 15 | 5 8 8 15 Average Carried 6 | 2 6 4 8 Final Capacity 15 | 8 8 5 15 Final Carried 8 | 5 8 5 5 Class Distribution -------------------- 56% | Mutant 26% | Derelict-Mutant 16% | Scavenger-Mutant Dominant Class ---------------- Mutant | -10/Materials Mutant | -10/Subcaves Derelict-Mutant | -7/Scraptown Resources | -11 -10 -10 -7 ----------- Run | Yrd Mat Sub Scr Matter Collected 1213 | 186 261 569 197 Remotely . | . . . . Salvage Created 860 | 17 277 566 . Parts 59 | 3 12 44 . Haulers Intercepted 1 | . 1 . . Recyclers Shooed 2 | . 2 . . Parts Field Recycled . | . . . . Retrieved Matter . | . . . . Parts Self-Destructed 15 | . . 15 . Prevented . | . . . . Parts Restored . | . . . . Kills | -11 -10 -10 -7 ------- Run | Yrd Mat Sub Scr Combat Hostiles Destroyed 25 | . 5 20 . Guns 19 | . 5 14 . Cannons 3 | . . 3 . AOE 3 | . . 3 . Classes Destroyed 6 | 1 2 3 . Tunneler 1 | 1 . . . Hauler 1 | . 1 . . Swarmer 5 | . . 5 . Grunt 8 | . 5 3 . Sentry 1 | . . 1 . Subdweller 11 | . . 11 . Best Kill Streak 4 | 1 4 3 . Combat Bots Only 3 | . 3 3 . Max Kills in Single Turn 2 | 1 1 2 . Gunslinging . | . . . . Exploded 2 | . . 2 . Melee . | . . . . Uniques/NPCs Destroyed . | . . . . Combat | -11 -10 -10 -7 -------- Run | Yrd Mat Sub Scr Hostile Shots Fired 209 | . 35 119 55 Missed 54 | . 9 33 12 Hits 155 | . 26 86 43 Projectile 155 | . 26 86 43 Critical Strikes 3 | . 1 1 1 Damage Taken 2294 | . 352 1431 511 Core 258 | . 40 84 134 Absorbed by Shields . | . . . . Core Remaining (%) 100 | 100 . . . Volleys Fired 128 | 1 33 94 . Largest 2 | 2 2 2 . Hottest 70 | 40 40 70 . Shots Fired 216 | 2 66 148 . Gun 177 | 2 66 109 . Cannon 24 | . . 24 . Launcher 8 | . . 8 . Special 7 | . . 7 . Kinetic 157 | 2 66 89 . Thermal 7 | . . 7 . Explosive 8 | . . 8 . Electromagnetic 44 | . . 44 . Robot Hit Streak 15 | 1 9 15 . Robot Miss Streak 5 | . 5 4 . Penetration Max . | . . . . Secondary Targets . | . . . . Shots Hit Robots 142 | 1 41 100 . Core Hits 48 | 1 15 32 . Critical Kills . | . . . . Critical Parts Destroyed 3 | . 3 . . Critical Strikes 6 | . 3 3 . Destroy 4 | . 3 1 . Blast 1 | . . 1 . Corrupt 1 | . . 1 . Melee Attacks . | . . . . Impact . | . . . . Slashing . | . . . . Piercing . | . . . . Sneak Attacks . | . . . . Combat Hostiles . | . . . . Follow-up Attacks . | . . . . Damage Inflicted 2678 | 10 534 2134 . Guns 1875 | 10 534 1331 . Cannons 230 | . . 230 . Explosions 573 | . . 573 . Melee . | . . . . Ramming . | . . . . Kinetic 1764 | 10 534 1220 . Thermal 66 | . . 66 . Explosive 507 | . . 507 . Electromagnetic 341 | . . 341 . Impact . | . . . . Slashing . | . . . . Piercing . | . . . . Highest Corruption 3 | . . 3 . Average Corruption 1 | . . 1 . Corruption Purged . | . . . . Corruption Blocked . | . . . . Effects 2 | . . 2 . Message Errors 2 | . . 2 . Overload Shots . | . . . . Overflow Damage 2 | . . 2 . Projectiles 2 | . . 2 . Explosions . | . . . . Melee . | . . . . Knockbacks 3 | . . 3 . Impact . | . . . . Kinetic 3 | . . 3 . Secondary . | . . . . Self-Inflicted Damage 17 | . . 17 . Shots 1 | . . 1 . Rammed . | . . . . Targets Rammed . | . . . . Kicked . | . . . . Crushed . | . . . . Highest Temperature 32 | . 15 . 32 Average Temperature 7 | . 3 . 12 Received Heat Transfer 778 | . 222 315 241 Siege Activations . | . . . . Martial Activations . | . . . . Shielding Activations . | . . . . Robots Disrupted . | . . . . Combat Hostiles . | . . . . Robots Corrupted . | . . . . Combat Hostiles . | . . . . Parts Fried . | . . . . Impact Corruptions . | . . . . Robots Melted . | . . . . Combat Hostiles . | . . . . Parts Melted . | . . . . Heat Transferred 100 | . . 100 . Parts Sabotaged . | . . . . Parts Stolen . | . . . . Parts Stripped . | . . . . Power Chain Reactions 1 | . . 1 . Alert | -11 -10 -10 -7 ------- Run | Yrd Mat Sub Scr Maximum Alert Level . | . . . . Low Security (%) 100 | 100 100 . . Level 1 . | . . . . Level 2 . | . . . . Level 3 . | . . . . Level 4 . | . . . . Level 5 . | . . . . High Security . | . . . . Max Security . | . . . . Peak Influence 77 | 5 77 . . Initial . | . . . . Average 16 | . 19 . . Influence Increases 392 | 5 127 260 . Destroy 0b10 Robot/C 280 | . 100 180 . Destroy 0b10 Robot/NC 10 | 5 5 . . Destroy Leader 42 | . 22 20 . Lose Combat Pursuer 60 | . . 60 . Influence Decreases 392 | 5 104 199 84 Entered New Map 96 | . . 12 84 Time Decay 256 | 5 94 157 . Lost Part 40 | . 10 30 . Squads Dispatched 1 | . 1 . . Investigation . | . . . . Extermination . | . . . . Reinforcement 1 | . 1 . . Assault . | . . . . Garrison . | . . . . Intercept . | . . . . Searches Triggered . | . . . . Construction Impeded . | . . . . Haulers Reinforced . | . . . . Active Scanning Responses . | . . . . Cargo Convoy Interrupts . | . . . . Stealth | -11 -10 -10 -7 --------- Run | Yrd Mat Sub Scr Distress Signals 2 | . 2 . . Communications Jammed . | . . . . Distress Signals . | . . . . Times Spotted 43 | . 10 23 10 Peak Tracking Total 5 | . 4 4 5 Tactical Retreats 2 | . . 2 . Traps | -11 -10 -10 -7 ------- Run | Yrd Mat Sub Scr Traps Triggered . | . . . . Indirectly . | . . . . Trap Hack Attempts . | . . . . Triggered . | . . . . Disarmed . | . . . . Reprogrammed . | . . . . Reused . | . . . . Traps Extracted . | . . . . Installed . | . . . . Triggered . | . . . . Most Traps Carried 1 | . . 1 1 Machines | -11 -10 -10 -7 ---------- Run | Yrd Mat Sub Scr Machines Disabled 1 | . . 1 . Max in Single Turn 1 | . . 1 . Machines Repaired . | . . . . Machines Dismantled . | . . . . Machines Sabotaged . | . . . . Overloaded Fab Kills . | . . . . Hacking | -11 -10 -10 -7 --------- Run | Yrd Mat Sub Scr Machines Accessed 10 | . 1 1 8 Terminals 1 | . 1 . . Fabricators . | . . . . Repair Stations . | . . . . Recycling Units . | . . . . Scanalyzers . | . . . . Garrison Access . | . . . . Total Hacks 70 | . 3 9 58 Successful 69 | . 2 9 58 Failed 1 | . 1 . . Catastrophic . | . . . . Database Lockouts . | . . . . Manual 3 | . 3 . . Terminals 3 | . 3 . . Fabricators . | . . . . Repair Stations . | . . . . Recycling Units . | . . . . Scanalyzers . | . . . . Garrison Access . | . . . . Terminal Hacks 67 | . . 9 58 Record 66 | . . 8 58 Proto ID Catalog 1 | . . 1 . Fabricator Hacks . | . . . . Repair Station Hacks . | . . . . Recycling Unit Hacks . | . . . . Scanalyzer . | . . . . Garrison Access Hacks . | . . . . Unauthorized Hacks 2 | . 2 . . Terminals 2 | . 2 . . Track 1 | . 1 . . Botnet 1 | . 1 . . Fabricators . | . . . . Repair Stations . | . . . . Recycling Units . | . . . . Scanalyzers . | . . . . Garrison Access . | . . . . Data Cores Recovered . | . . . . Used . | . . . . Hacking Detections 1 | . 1 . . Full Trace Events . | . . . . Feedback Events . | . . . . Feedback Blocked . | . . . . Robot Schematics Acquired . | . . . . Robots Built . | . . . . Authchips . | . . . . Time . | . . . . Total Robot Build Rating . | . . . . Part Schematics Acquired . | . . . . Parts Built . | . . . . Authchips . | . . . . Time . | . . . . Total Part Build Rating . | . . . . Part Studies Acquired . | . . . . Parts Repaired . | . . . . Time . | . . . . Parts Recycled . | . . . . Recycled Matter . | . . . . Retrieved Matter . | . . . . Retrieved Components . | . . . . Parts Scanalyzed . | . . . . Part Schematics Acquired . | . . . . Parts Damaged . | . . . . Bothacking | -11 -10 -10 -7 ------------ Run | Yrd Mat Sub Scr Used RIF Installer . | . . . . Robots Hacked . | . . . . Non-combat . | . . . . Combat . | . . . . Robot Hacks Applied . | . . . . Relay Couplers Released . | . . . . Fabnet Peak Effective % . | . . . . Robots Rewired . | . . . . Allies Hacked . | . . . . Hacks Repelled . | . . . . Allies | -11 -10 -10 -7 -------- Run | Yrd Mat Sub Scr Total Allies . | . . . . Largest Group . | . . . . Highest-Rated Group . | . . . . Highest-Rated Ally . | . . . . Total Orders . | . . . . Ally Attacks . | . . . . Total Damage . | . . . . Kills . | . . . . Allies Corrupted . | . . . . Allies Melted 2 | . . . 2 Intel | -11 -10 -10 -7 ------- Run | Yrd Mat Sub Scr Active Infowar (turns) 3303 | 13 452 1817 1021 Seismic 3303 | 13 452 1817 1021 Robot Analysis Total . | . . . . Derelict Logs Recovered 5 | . . 2 3 Drone Launches . | . . . . Drone Recoveries . | . . . . Exploration | -11 -10 -10 -7 ------------- Run | Yrd Mat Sub Scr Turns Passed 5802 | 82 452 3316 1952 Spaces Moved 3644 | 42 120 1926 1556 Core 129 | 4 . . 125 Treads 1879 | 38 120 1721 . Legs 63 | . . . 63 Wheels 1573 | . . 205 1368 Hover . | . . . . Flight . | . . . . Fastest Speed 50 | 50 160 95 100 Average Speed 141 | 149 160 154 122 Slowest Speed 300 | 160 160 160 300 Overloaded Moves . | . . . . Propulsion Burnouts . | . . . . Robots Hopped . | . . . . Potential Cave-ins 2 | . . 2 . Cave-ins Triggered . | . . . . Exploration Rate (%) 45 | 4 26 67 85 Regions Visited 3 Branch Regions 2 Pre-discovered Areas 4 | . . 2 2 Known Exits Taken . | . . . . Unknown Exits Taken 3 | 1 1 1 . Scrap Searched 20 | . . 11 9 Spaces Dug 20 | . . 20 . Terrain Destroyed 49 | . . 49 . Melee . | . . . . Projectile 5 | . . 5 . AOE 44 | . . 44 . Terrain Rammed . | . . . . Walls Destroyed . | . . . . Machines Disabled . | . . . . Actions | -11 -10 -10 -7 --------- Run | Yrd Mat Sub Scr Total 4088 | 56 316 2112 1604 Wait 194 | 2 153 30 9 Move 3641 | 41 119 1925 1556 Hop . | . . . . Pick Up 26 | 5 7 4 10 Fast Attach 27 | 7 . 12 8 Attach 5 | . 1 4 . Detach 2 | . . 1 1 Swap 13 | . . 12 1 Drop 40 | . 3 18 19 Fire 128 | 1 33 94 . Melee . | . . . . Ram . | . . . . Kick . | . . . . Crush . | . . . . Escape Stasis . | . . . . Rewire . | . . . . Trap . | . . . . Miscellaneous 12 | . . 12 . Route ------- -11/Scrapyard -10/Materials (discovered 2 exits: [*Min] / *Sub) -10/Subcaves (discovered 2 exits: [*Mat] / *Scr) -7/Scraptown (discovered 1 exit: [*Fac]) History --------- Turn | Location | Event 40 | -11/Scrapyard | Discovered new exit (range 16) 83 | -11/Scrapyard | Entered Materials 300 | -10/Materials | Build established: Mutant 492 | -10/Materials | Discovered new exit (range 13) 500 | -10/Materials | Discovered new exit (range 7) 535 | -10/Materials | Entered Subcaves 536 | -10/Subcaves | Approached by a straggling Scientist 959 | -10/Subcaves | Disturbed a concealed Subdweller 1387 | -10/Subcaves | Scientist uncovered a shortcut to Scraptown 1815 | -10/Subcaves | Discovered new exit (range 9) 1900 | -10/Subcaves | Disturbed a concealed Subdweller 1962 | -10/Subcaves | Lost 3 parts (1p1u1w) 1987 | -10/Subcaves | Shifting Twisted Machinery released Battle Cannon 2594 | -10/Subcaves | Visited 4L-MR0's lab 2594 | -10/Subcaves | Build established: Derelict-Mutant 2613 | -10/Subcaves | Found Rainbow Chip 2690 | -10/Subcaves | Learned location of Zion (-7) 2690 | -10/Subcaves | Met a Zionite searching for "candidates" 3069 | -10/Subcaves | Shifting Twisted Machinery released Battle Rifle 3230 | -10/Subcaves | Build established: Mutant 3851 | -10/Subcaves | Entered Scraptown 3851 | -7/Scraptown | System corruption cleaned by C-Scrubber 3946 | -7/Scraptown | Build established: Scavenger-Mutant 4253 | -7/Scraptown | Discovered new exit (range 7) 4429 | -7/Scraptown | Scanned Subdweller tech in exchange for log data 4436 | -7/Scraptown | Learned location of 1 exit from Research 4439 | -7/Scraptown | Learned 8 Factory zone layouts 4441 | -7/Scraptown | Learned location of Quarantine (-3) 4519 | -7/Scraptown | Visited Awakened 4559 | -7/Scraptown | Visited Bundlers 4756 | -7/Scraptown | Visited CPS Storage 4952 | -7/Scraptown | Visited UFD Registry 4952 | -7/Scraptown | Registered with UFD as "Wrenchframe" 4970 | -7/Scraptown | Visited Cyclists 4984 | -7/Scraptown | Entered Cyclist Reading Room 5065 | -7/Scraptown | Visited Cartography Club 5141 | -7/Scraptown | Build established: Derelict-Mutant 5255 | -7/Scraptown | Found Deep Structural Scanner 5347 | -7/Scraptown | Visited Chapter 10 5397 | -7/Scraptown | Visited Botcube Research 5402 | -7/Scraptown | Found Botcube 5446 | -7/Scraptown | Visited Modified Component R&D 5494 | -7/Scraptown | Visited Scrap Suit Storage 5503 | -7/Scraptown | Found Scrap Suit 5539 | -7/Scraptown | Visited Research Penetration Think Tank 5585 | -7/Scraptown | Met Optimus 5585 | -7/Scraptown | Accepted into 0bPrime 5650 | -7/Scraptown | Visited Infowarlord's Domain 5657 | -7/Scraptown | Found Exp. Sensor Array 5681 | -7/Scraptown | Visited A0-MCA Data Center 5688 | -7/Scraptown | Given a B rating by A0-MCA 5721 | -7/Scraptown | Civil war broke out across Scraptown 5753 | -7/Scraptown | Core integrity fell below 50% 5784 | -7/Scraptown | Found Prototype Processor 5784 | -7/Scraptown | Identified Expert System 5795 | -7/Scraptown | Core integrity fell below 20% 5803 | -7/Scraptown | Destroyed by CL-FOQ(j) with Overtuned Pulse Rifle Last Messages --------------- 05786_ Penetrated by Bolt. 05787_ CG-7IN(g) destroyed. 05788_ Critical hit (Burn: +50). 05789_ Penetrated by Bolt. 05791_ 6Q-RMX(j) suffers critical hit (Burn). 05791_ Sub. Machine Gun destroyed. 05794_ Discarded Expert System. 05796_ CL-FOQ(j) cannibalizes Ion Engine to repair Lgt. Deuterium Engine. 05798_ CL-FOQ(j) heat spikes uncontrollably. 05799_ Arm. Huge Wheel destroyed. 05799_ Dropped Scrap Suit. 05800_ Dropped Shrapnel Trap. 05800_ Dropped Botcube. 05801_ Dropped Mapping Drone Bay. 05801_ Dropped Deep Structural Scanner. 05802_ Dropped Lightning Gun. 05802_ Dropped Plasma Cutter. 05803_ Dropped Seismic Detector. [Achievement: Deductive Reasoning] Map ----- +----------------------------------------------------+ | ?????????????????????????????????????????????????? | | ?????????????????????????????????????????????????? | | ?????????????????????????????????????????????????? | | ?????????????????????????????????????????????????? | | ?????????????????????????????????????????????????? | | ?????????????????????????????????????????????????? | | ?????????????????????????????????????????????????? | | ?????????????????????????????????????????????????? | | ?????????????????????????????????????????????????? | | ?????????????????????????????????????????????????? | | ?????????????????????????????????????????????????? | | ?????????????????????????????????????????????????? | | ?????????????????????????????????????????????????? | | ?????????????????????????????????????????????????? | | ?????????????????????????????????????????????????? | | ?????????????????????????????????????????????????? | | ????????????????????##############???????????????? | | ?????????????????? #""""""""""""#???????????????? | | #######??????????? #"""""""# " "#???????????????? | | """"""#??????????? #" " [ # #???????????????? | | " #??????????#!%#"= #+####???????????????? | | ""#??????????#[=#" """#???????????????? | | ""#??????????#[!#" =!! ["#???????????????? | | """"####"#######!!%""""=%%[ ""#???????????????? | | " ""#"" """"#!%#####"!=* "#???????????????? | | """"#" """# =#""""@j%[ #???????????????? | | ""# "! ""# # [=&j[ ##???????????????? | | "#" %!% """# # !!| "#???????????????? | | #" %=! # # "#???????????????? | | ########## !##### ## ###########???????????????? | | ########### ##### ##h##????????????????????????? | | """""""" " """"" "" "#############????????????? | | %= "## #"""""#""#????????????? | | !%/ ![! "## !! !#????????????? | | =%= "## #????????????? | | [[!* =%* "## #????????????? | | !%[ !%! != X" #????????????? | | """""""""""""""" == =%"## ##"#????????????? | | """"""""""""""""""%%!%[[## ! ! #???????????????? | | ################"" [%"## #"""""#???????????????? | | ##????????#" !"##########???????????????? | | X"#????????#""=![ "## " """"#???????????????? | | "" ##????????#""=%! "## ""#???????????????? | | "" X"#??????###"=![ "## "#???????????????? | | " ######### #""%* "## ""#???????????????? | | [ %!! [* ""#???????????????? | | =% =! =%"## ""#???????????????? | | " ######### #" !%!"## """"""#???????????????? | | "" ""#??????###" !=[!"##"""""""#???????????????? | | "" ##????????#" ! =!%"##########???????????????? | +----------------------------------------------------+ Best States ------------- Heat Dissipation 25 Energy Generation 15 Energy Capacity 265 Matter Stores 300 Matter Capacity 300 Sight Range 16 Terrain Scan Density 10 Armor Coverage 800 Evasion (%) 55 Targeting Accuracy 6 Recoil Reduction 2 Item Schematics ----------------- None Robot Schematics ------------------ None Fabricated ------------ Nothing Repaired ---------- Nothing Studied --------- None Alien Tech Used ----------------- None Achievements -------------- A Problem For Future Me Bob, First Of His Name Civilization 2243 Deductive Reasoning Link The Feds Mistaken Identity Nice Directions, Buddy Survival Of The Most Covered Challenges ------------ None Game ------ Seed PiercingGrapheneAxe Manual? 0 Play Time 00:44:25 Cumulative 99.7 hours Start 2025.12.23 @ 10:22:32 End 2025.12.23 @ 11:19:23 Sessions 3 Manual Loads 0 Difficulty Rogue Special Mode None Game No. 43 Rogue 43 Adventurer 0 Explorer 0 Win Type - Total 11 Types 10/0/0/1/0/0/0/0/0/0 Lore% 60 Gallery% 52 Achievement% 32 Wizard Run 0 Options --------- Layout 1 ASCII 1 Keyboard 0 Movement Vi Keybinds 0 Fullscreen 1 Font 18/SmallcapsGlow Map View 54x44 Zoom Use 0% Tactical HUD 1 Map Filters NONE Filters NONE Steam 0 RUN: e7bb68db-8d0b-4445-8db0-a8193ee33339